fUSD/lending_fUSD_20260530
["ID","MTS","AMOUNT","RATE_DAILY","PERIOD"]
[423385093,1780071758000,1000.00869181,0.00028,120]
[423385095,1780071759000,-300.0,9.172e-05,2]
[423385096,1780071759000,-260.4647617,9.173e-05,2]
[423385097,1780071759000,-500.0,9.173e-05,2]
[423385098,1780071759000,-514.77283722,9.173e-05,2]
[423385100,1780071759000,-500.0,9.173e-05,2]
[423385101,1780071759000,-253.75986218,9.173e-05,2]
[423385102,1780071759000,-500.0,9.173e-05,2]
[423385099,1780071759000,-505.30754194,9.173e-05,2]
[423385103,1780071759000,-500.0,9.173e-05,2]
[423385105,1780071759000,-500.0,9.173e-05,2]
[423385111,1780071759000,-500.0,9.173e-05,2]
[423385107,1780071759000,-500.0,9.173e-05,2]
[423385106,1780071759000,-404.7389783,9.173e-05,2]
[423385108,1780071759000,-500.0,9.173e-05,2]
[423385110,1780071759000,-500.0,9.173e-05,2]
[423385109,1780071759000,-500.0,9.173e-05,2]
[423385104,1780071759000,-500.0,9.173e-05,2]
[423385117,1780071760000,-500.0,9.173e-05,2]
[423385116,1780071760000,-500.0,9.173e-05,2]
[423385118,1780071760000,-500.0,9.173e-05,2]
[423385113,1780071760000,-500.0,9.173e-05,2]
[423385112,1780071760000,-500.0,9.173e-05,2]
[423385114,1780071760000,-500.0,9.173e-05,2]
[423385119,1780071760000,-500.0,9.173e-05,2]
[423385115,1780071760000,-500.0,9.173e-05,2]
[423385120,1780071760000,-500.0,9.173e-05,2]
[423385124,1780071760000,-1200.0,9.173e-05,2]
[423385123,1780071760000,-500.0,9.173e-05,2]
[423385131,1780071760000,-1292747.56743253,9.458e-05,2]
[423385130,1780071760000,-219271.6568,9.458e-05,2]
[423385127,1780071760000,-150.0,9.174e-05,2]
[423385128,1780071760000,-150.0,9.264e-05,2]
[423385121,1780071760000,-500.0,9.173e-05,2]
[423385126,1780071760000,-172410.73178613,9.174e-05,2]
[423385125,1780071760000,-181.0,9.173e-05,2]
[423385122,1780071760000,-500.0,9.173e-05,2]
[423385129,1780071760000,-150.0,9.355e-05,2]
[423385132,1780071764000,-133796.78596747,9.458e-05,2]
[423385133,1780071770000,150.0,0.00011233,120]
[423385134,1780071806000,-1181.18,9.657e-05,2]
[423385135,1780071831000,-1181.18,9.657e-05,2]
[423385136,1780071855000,-1181.18,9.074e-05,2]
[423385140,1780071876000,500.0,0.00027414,120]
[423385141,1780071877000,543.54,0.00027416,120]
[423385142,1780071877000,-300.0,9.073e-05,2]
[423385143,1780071894000,150.0,8.802e-05,2]
[423385144,1780071894000,784.37985835,8.274e-05,2]
[423385146,1780071906000,249.0,0.00025626,120]
[423385148,1780071908000,249.0,0.00026907,120]
[423385147,1780071908000,270.98867,7.945e-05,2]
[423385150,1780071923000,-300.0,9.073e-05,2]
[423385151,1780071930000,172.0,0.00025477,120]
[423385152,1780071931000,172.0,0.00026751,120]
[423385154,1780071952000,1000.0,0.00027397,120]
[423385156,1780071978000,-500.0,9.073e-05,2]
[423385157,1780071978000,184.0,0.00028082,120]
[423385159,1780072000000,-239.27190729,9.073e-05,2]
[423385162,1780072033000,-260.72809271,9.073e-05,2]
[423385163,1780072038000,-211.63766426,9.073e-05,2]
[423385164,1780072038000,-212.13988672,9.073e-05,2]
[423385167,1780072087000,-987.86011328,9.073e-05,2]
[423385171,1780072152000,1000.0,0.00028081,120]
[423385174,1780072200000,229.79723601,0.00021842,120]
[423385176,1780072209000,175.0,0.00025706,120]
[423385177,1780072211000,175.0,0.00026992,120]
[423385179,1780072229000,173.0,0.00025852,120]
[423385180,1780072230000,173.0,0.00027145,120]
[423385205,1780072232000,-9890.09475483,9.662e-05,2]
[423385196,1780072232000,-59603.00335584,9.562e-05,2]
[423385194,1780072232000,-75725.14170789,9.562e-05,2]
[423385195,1780072232000,-1000.30473627,9.562e-05,2]
[423385192,1780072232000,-203.71527936,9.561e-05,2]
[423385204,1780072232000,-1000.0,9.661e-05,2]
[423385193,1780072232000,-210.34098605,9.561e-05,2]
[423385186,1780072232000,-250.0,9.073e-05,2]
[423385188,1780072232000,-1828.47669352,9.074e-05,2]
[423385191,1780072232000,-500.0,9.561e-05,2]
[423385189,1780072232000,-182.32533319,9.561e-05,2]
[423385187,1780072232000,-11735.74330648,9.074e-05,2]
[423385185,1780072232000,-1200.0,9.073e-05,2]
[423385184,1780072232000,-1559.65669352,9.073e-05,2]
[423385197,1780072232000,-200.0,9.571e-05,2]
[423385190,1780072232000,-500.0,9.561e-05,2]
[423385202,1780072232000,-2000.0,9.657e-05,2]
[423385211,1780072232000,-227.0,9.97e-05,2]
[423385198,1780072232000,-164.04,9.61e-05,2]
[423385219,1780072232000,-152.0,0.00010112,2]
[423385214,1780072232000,-221.19152795,0.0001,2]
[423385215,1780072232000,-243.26011599,0.0001,2]
[423385213,1780072232000,-250.0,9.98e-05,2]
[423385212,1780072232000,-1680.0,9.98e-05,2]
[423385217,1780072232000,-3910.89,0.0001004,2]
[423385221,1780072232000,-4266.44396179,0.00010141,2]
[423385199,1780072232000,-831.11409244,9.612e-05,2]
[423385209,1780072232000,-11829.0,9.944e-05,2]
[423385210,1780072232000,-198.0,9.97e-05,2]
[423385207,1780072232000,-8142.85368446,9.662e-05,2]
[423385206,1780072232000,-41858.84156071,9.662e-05,2]
[423385203,1780072232000,-150.0,9.661e-05,2]
[423385200,1780072232000,-248.50846616,9.612e-05,2]
[423385201,1780072232000,-633.2962,9.657e-05,2]
[423385208,1780072232000,-178.23,9.694e-05,2]
[423385231,1780072233000,-1069.31,0.00010367,2]
[423385234,1780072233000,-2000.0,0.00010417,2]
[423385236,1780072233000,-223.0,0.00010627,2]
[423385223,1780072233000,-8003.0,0.00010187,2]
[423385238,1780072233000,-166.66,0.00010666,2]
[423385222,1780072233000,-172.46,0.00010186,2]
[423385227,1780072233000,-1451.04,0.00010326,2]
[423385225,1780072233000,-200.0,0.0001025,2]
[423385229,1780072233000,-1600.0,0.00010332,2]
[423385246,1780072233000,-4547.04,0.00010959,2]
[423385250,1780072233000,-166.66,0.00011018,2]
[423385254,1780072233000,-9847.91598039,0.00011187,2]
[423385257,1780072233000,-528.44131753,0.00011187,2]
[423385242,1780072233000,-2616.81,0.00010802,2]
[423385252,1780072233000,-17843.15891245,0.00011099,2]
[423385240,1780072233000,-80370.84517926,0.000107,2]
[423385244,1780072233000,-949.17,0.00010823,2]
[423385248,1780072233000,-2351.0,0.00010978,2]
[423385393,1780072237000,-617.89521483,0.00011187,2]
[423385394,1780072238000,-3502.1854194,0.00011187,2]
[423385395,1780072238000,-839.32323247,0.00011187,2]
[423385397,1780072238000,-1561.74607985,0.00011187,2]
[423385396,1780072238000,-814.19530196,0.00011187,2]
[423385736,1780072242000,-180.44614637,0.00011624,2]
[423385735,1780072242000,-500.0,0.0001137,2]
[423385734,1780072242000,-166.66,0.0001137,2]
[423385731,1780072242000,-152.0,9.447e-05,2]
[423385733,1780072242000,-150.0,0.00011233,2]
[423385732,1780072242000,-131.45636598,0.00011187,2]
[423385766,1780072245000,152.0,0.00025068,120]
[423385769,1780072246000,-628.80003031,0.00011644,2]
[423385768,1780072246000,-595.43385363,0.00011624,2]
[423385767,1780072246000,-824.12,0.00011624,2]
[423385770,1780072246000,-16.23082564,0.00011645,2]
[423385861,1780072263000,1000.0,0.00027397,120]
[423385866,1780072394000,500.0,0.00027416,120]
[423385865,1780072394000,500.0,0.00027416,120]
[423385867,1780072445000,500.0,0.00028082,120]
[423385868,1780072478000,173.84292181,0.00028,120]
[423385869,1780072507000,175.0,0.00027546,120]
[423385870,1780072507000,500.0,0.00028082,120]
[423385871,1780072562000,-209.09056759,9.078e-05,2]
[423385872,1780072579000,152.0,0.00024996,120]
[423385873,1780072581000,-215.5484138,9.078e-05,2]
[423385874,1780072582000,177.95,8.43e-05,2]
[423385875,1780072591000,150.0,0.00011948,120]
[423385876,1780072616000,-1181.18,9.078e-05,2]
[423385878,1780072636000,-378.47669352,9.078e-05,2]
[423385879,1780072672000,-209.09056759,9.082e-05,2]
[423385880,1780072674000,-152.0,9.39e-05,2]
[423385881,1780072674000,-57.09056759,9.461e-05,2]
[423385882,1780072695000,-275.34043241,9.461e-05,2]
[423385883,1780072696000,168.05,1.2e-05,14]
[423385884,1780072722000,547.36484337,0.0002,120]
[423385885,1780072741000,-177.95,9.836e-05,2]
[423385886,1780072787000,-300.0,9.974e-05,2]
[423385887,1780072800000,150.0,0.00022019,120]
[423385888,1780072801000,194.69585402,0.00022019,120]
[423385890,1780072809000,500.0,8.973e-05,2]
[423385889,1780072809000,175.0,0.00026701,120]
[423385891,1780072810000,175.0,0.00028036,120]
[423385892,1780072832000,-1181.18,9.974e-05,2]
[423385893,1780072851000,-18.82,9.974e-05,2]
[423385894,1780072852000,152.0,0.00024836,120]
[423385895,1780072880000,1000.0,0.00027397,120]
[423385896,1780072904000,-152.0,9.389e-05,2]
[423385897,1780072923000,651.25304607,0.00028082,120]
[423385898,1780072949000,-300.0,9.973e-05,2]
[423385901,1780073069000,6686.44,8.971e-05,2]
[423385900,1780073069000,9500.0,8.971e-05,2]
[423385902,1780073140000,152.0,0.00024843,120]
[423385904,1780073180000,10000.0,8.927e-05,2]
[423385903,1780073180000,3313.56,8.927e-05,2]
[423385905,1780073181000,2821.4,8.927e-05,2]
[423385906,1780073192000,1000.0,0.00027397,120]
[423385907,1780073194000,-244.20153672,9.042e-05,2]
[423385908,1780073236000,-523.84288625,9.042e-05,2]
[423385909,1780073299000,289.63,8.926e-05,2]
[423385910,1780073342000,1000.0,0.00028081,120]
[423385911,1780073377000,-231.95557703,9.042e-05,2]
[423385912,1780073396000,500.0,8.895e-05,2]
[423385913,1780073396000,-250.0,9.186e-05,2]
[423385914,1780073397000,150.0,0.00011233,120]
[423385915,1780073400000,177.96,7.132e-05,2]
[423385916,1780073431000,-216.91,9.33e-05,2]
[423385978,1780073449000,-655.8,9.379e-05,2]
[423385995,1780073450000,-4920.51784636,9.667e-05,2]
[423385998,1780073450000,-655.8,9.743e-05,2]
[423385997,1780073450000,-655.8,9.691e-05,2]
[423385992,1780073450000,-1080.0,9.652e-05,2]
[423385993,1780073450000,-9522.0,9.662e-05,2]
[423385990,1780073450000,-655.8,9.639e-05,2]
[423385996,1780073450000,-947.0,9.672e-05,2]
[423386001,1780073450000,-655.8,9.847e-05,2]
[423386000,1780073450000,-655.8,9.795e-05,2]
[423386002,1780073450000,-655.8,9.899e-05,2]
[423385988,1780073450000,-509.0,9.609e-05,2]
[423385989,1780073450000,-161.0,9.633e-05,2]
[423385994,1780073450000,-230.0,9.666e-05,2]
[423385991,1780073450000,-10007.0,9.643e-05,2]
[423385987,1780073450000,-655.8,9.587e-05,2]
[423385984,1780073450000,-1200.0,9.48e-05,2]
[423385983,1780073450000,-300.0,9.48e-05,2]
[423385986,1780073450000,-655.8,9.535e-05,2]
[423385985,1780073450000,-655.8,9.483e-05,2]
[423385979,1780073450000,-655.8,9.431e-05,2]
[423385980,1780073450000,-152.0,9.453e-05,2]
[423385982,1780073450000,-300.0,9.48e-05,2]
[423385981,1780073450000,-209.09056759,9.458e-05,2]
[423386007,1780073450000,-250.0,9.946e-05,2]
[423385999,1780073450000,-150.0,9.791e-05,2]
[423386006,1780073450000,-500.0,9.946e-05,2]
[423386010,1780073450000,-5000.0,0.00010013,2]
[423386005,1780073450000,-4037.08279602,9.946e-05,2]
[423386003,1780073450000,-250.0,9.946e-05,2]
[423386026,1780073450000,-500.0,0.00010113,2]
[423386031,1780073450000,-775.75637362,0.00010113,2]
[423386028,1780073450000,-214347.03892855,0.00010113,2]
[423386032,1780073450000,-1682.30867738,0.00010113,2]
[423386027,1780073450000,-13038.2400565,0.00010113,2]
[423386030,1780073450000,-2828.10168465,0.00010113,2]
[423386025,1780073450000,-172.51383256,0.00010112,2]
[423386023,1780073450000,-655.8,0.00010107,2]
[423386021,1780073450000,-602.14701294,0.00010082,2]
[423386017,1780073450000,-1275.69085718,0.00010059,2]
[423386019,1780073450000,-492.60069555,0.00010082,2]
[423386024,1780073450000,-151.0,0.0001011,2]
[423386016,1780073450000,-655.8,0.00010055,2]
[423386020,1780073450000,-500.0,0.00010082,2]
[423386004,1780073450000,-325.79234877,9.946e-05,2]
[423386008,1780073450000,-655.8,9.951e-05,2]
[423386029,1780073450000,-29917.56107975,0.00010113,2]
[423386012,1780073450000,-160.0,0.00010043,2]
[423386009,1780073450000,-655.8,0.00010003,2]
[423386013,1780073450000,-640.0,0.00010049,2]
[423386015,1780073450000,-1000.0,0.00010054,2]
[423386011,1780073450000,-2000.0,0.00010013,2]
[423386014,1780073450000,-2888.54,0.00010049,2]
[423386018,1780073450000,-200.7737024,0.00010062,2]
[423386022,1780073450000,-214.03806367,0.00010083,2]
[423386058,1780073451000,-177.96,0.00010697,2]
[423386049,1780073451000,-655.8,0.00010367,2]
[423386044,1780073451000,-250.0,0.00010263,2]
[423386047,1780073451000,-2000.0,0.00010283,2]
[423386045,1780073451000,-655.8,0.00010263,2]
[423386043,1780073451000,-655.8,0.00010211,2]
[423386041,1780073451000,-595009.76689347,0.00010113,2]
[423386046,1780073451000,-2595.84,0.00010279,2]
[423386040,1780073451000,-202.41677093,0.00010113,2]
[423386039,1780073451000,-156.81577748,9.479e-05,2]
[423386038,1780073451000,152.0,0.0002203,120]
[423386037,1780073451000,-1411.43325945,0.00010113,2]
[423386036,1780073451000,-263.39072739,0.00010076,2]
[423386033,1780073451000,-933.69403119,0.00010076,2]
[423386034,1780073451000,-370.65417125,0.00010076,2]
[423386042,1780073451000,-655.8,0.00010159,2]
[423386048,1780073451000,-655.8,0.00010315,2]
[423386035,1780073451000,-596.3382509,0.00010076,2]
[423386050,1780073451000,-500.0,0.00010387,2]
[423386051,1780073451000,-420.0,0.00010428,2]
[423386066,1780073451000,-2595.84,0.0001105,2]
[423386068,1780073451000,-250.0,0.00011276,2]
[423386064,1780073451000,-150.0,0.00010959,2]
[423386067,1780073451000,-150.0,0.00011233,2]
[423386065,1780073451000,-150.0,0.00010959,2]
[423386059,1780073451000,-1275.69085716,0.00010764,2]
[423386061,1780073451000,-2595.84,0.00010793,2]
[423386063,1780073451000,-9861.5750222,0.000109,2]
[423386060,1780073451000,-255.0,0.0001077,2]
[423386057,1780073451000,-296306.0504985,0.00010606,2]
[423386056,1780073451000,-7256.6726615,0.00010606,2]
[423386055,1780073451000,-1799.99571439,0.00010565,2]
[423386052,1780073451000,-1680.0,0.00010428,2]
[423386053,1780073451000,-166.67,0.00010516,2]
[423386062,1780073451000,-9861.57502225,0.000109,2]
[423386054,1780073451000,-2595.84,0.00010536,2]
[423386107,1780073452000,-2162.32,0.00012508,2]
[423386109,1780073452000,-2162.32,0.00012574,2]
[423386106,1780073452000,-2162.32,0.00012441,2]
[423386113,1780073452000,-2162.32,0.00012707,2]
[423386105,1780073452000,-166.66,0.00012427,2]
[423386102,1780073452000,-2162.32,0.00012309,2]
[423386100,1780073452000,-2162.32,0.00012242,2]
[423386103,1780073452000,-2772.17,0.00012329,2]
[423386099,1780073452000,-2162.32,0.00012176,2]
[423386108,1780073452000,-640.0,0.00012561,2]
[423386104,1780073452000,-2162.32,0.00012375,2]
[423386115,1780073452000,-9861.5750222,0.00012825,2]
[423386118,1780073452000,-2162.32,0.00012906,2]
[423386112,1780073452000,-2162.32,0.0001264,2]
[423386110,1780073452000,-3292.0,0.00012618,2]
[423386111,1780073452000,-823.0,0.00012618,2]
[423386117,1780073452000,-2000.0,0.00012854,2]
[423386127,1780073452000,-1799.99571439,0.00013468,2]
[423386119,1780073452000,-1600.0,0.00012915,2]
[423386096,1780073452000,-150.99,0.00012087,2]
[423386120,1780073452000,-2162.32,0.00012972,2]
[423386116,1780073452000,-2162.32,0.00012839,2]
[423386121,1780073452000,-736.0,0.00013032,2]
[423386125,1780073452000,-214.55097097,0.00013184,2]
[423386124,1780073452000,-2162.32,0.00013171,2]
[423386114,1780073452000,-2162.32,0.00012773,2]
[423386122,1780073452000,-2162.32,0.00013039,2]
[423386088,1780073452000,-173.75443068,0.00011923,2]
[423386097,1780073452000,-2162.32,0.0001211,2]
[423386069,1780073452000,-9999.99,0.00011281,2]
[423386071,1780073452000,-2774.15,0.00011281,2]
[423386070,1780073452000,-299.99,0.00011281,2]
[423386072,1780073452000,-9999.99,0.00011281,2]
[423386073,1780073452000,-640.0,0.00011305,2]
[423386075,1780073452000,-166.67,0.00011383,2]
[423386074,1780073452000,-2595.84,0.00011307,2]
[423386079,1780073452000,-1275.69085716,0.00011468,2]
[423386077,1780073452000,-9861.5750222,0.00011442,2]
[423386076,1780073452000,-3575.5105,0.0001143,2]
[423386080,1780073452000,-2351.0,0.00011471,2]
[423386078,1780073452000,-214.55097098,0.00011468,2]
[423386101,1780073452000,-166.67,0.00012251,2]
[423386081,1780073452000,-587.0,0.00011471,2]
[423386090,1780073452000,-11735.7433,0.00011943,2]
[423386092,1780073452000,-160.452033,0.00011966,2]
[423386083,1780073452000,-191179.43948648,0.0001153,2]
[423386084,1780073452000,-2000.0,0.00011568,2]
[423386091,1780073452000,-330.08909522,0.00011957,2]
[423386085,1780073452000,-166.66,0.00011722,2]
[423386086,1780073452000,-433.0,0.00011847,2]
[423386087,1780073452000,-337.2880125,0.00011923,2]
[423386089,1780073452000,-175.712175,0.00011932,2]
[423386094,1780073452000,-2162.32,0.00012043,2]
[423386093,1780073452000,-2162.32,0.00011977,2]
[423386095,1780073452000,-166.66,0.00012075,2]
[423386082,1780073452000,-29979.26914452,0.0001153,2]
[423386126,1780073452000,-2162.32,0.00013238,2]
[423386098,1780073452000,-9861.5750222,0.00012134,2]
[423386128,1780073452000,-150.0,0.00013488,2]
[423386160,1780073452000,-500.0,0.00013698,2]
[423386152,1780073452000,-500.0,0.00013698,2]
[423386158,1780073452000,-544.9,0.00013698,2]
[423386159,1780073452000,-500.0,0.00013698,2]
[423386165,1780073452000,-500.0,0.00013698,2]
[423386164,1780073452000,-500.0,0.00013698,2]
[423386175,1780073452000,-500.0,0.00013698,2]
[423386172,1780073452000,-500.0,0.00013698,2]
[423386171,1780073452000,-500.0,0.00013698,2]
[423386173,1780073452000,-500.0,0.00013698,2]
[423386167,1780073452000,-500.0,0.00013698,2]
[423386166,1780073452000,-500.0,0.00013698,2]
[423386163,1780073452000,-217.44,0.00013698,2]
[423386170,1780073452000,-186.88424159,0.00013698,2]
[423386174,1780073452000,-500.0,0.00013698,2]
[423386176,1780073452000,-500.0,0.00013698,2]
[423386179,1780073452000,-500.0,0.00013698,2]
[423386178,1780073452000,-500.0,0.00013698,2]
[423386177,1780073452000,-500.0,0.00013698,2]
[423386183,1780073452000,-500.0,0.00013698,2]
[423386181,1780073452000,-500.0,0.00013698,2]
[423386182,1780073452000,-500.0,0.00013698,2]
[423386180,1780073452000,-500.0,0.00013698,2]
[423386185,1780073452000,-548.82,0.00013698,2]
[423386184,1780073452000,-500.0,0.00013698,2]
[423386123,1780073452000,-2162.32,0.00013105,2]
[423386169,1780073452000,-500.0,0.00013698,2]
[423386156,1780073452000,-500.0,0.00013698,2]
[423386168,1780073452000,-500.0,0.00013698,2]
[423386161,1780073452000,-500.0,0.00013698,2]
[423386129,1780073452000,-154.07871726,0.00013488,2]
[423386162,1780073452000,-500.0,0.00013698,2]
[423386130,1780073452000,-154.125904,0.00013488,2]
[423386131,1780073452000,-150.0,0.00013488,2]
[423386132,1780073452000,-153.65997092,0.00013488,2]
[423386133,1780073452000,-152.46068316,0.00013488,2]
[423386138,1780073452000,-150.0,0.00013613,2]
[423386135,1780073452000,-150.0,0.00013488,2]
[423386136,1780073452000,-150.0,0.00013488,2]
[423386134,1780073452000,-150.0,0.00013488,2]
[423386140,1780073452000,-500.0,0.00013698,2]
[423386150,1780073452000,-500.0,0.00013698,2]
[423386139,1780073452000,-500.0,0.00013698,2]
[423386141,1780073452000,-500.0,0.00013698,2]
[423386137,1780073452000,-9861.5750222,0.00013517,2]
[423386157,1780073452000,-544.9,0.00013698,2]
[423386155,1780073452000,-500.0,0.00013698,2]
[423386148,1780073452000,-500.0,0.00013698,2]
[423386154,1780073452000,-500.0,0.00013698,2]
[423386153,1780073452000,-500.0,0.00013698,2]
[423386151,1780073452000,-500.0,0.00013698,2]
[423386144,1780073452000,-500.0,0.00013698,2]
[423386149,1780073452000,-500.0,0.00013698,2]
[423386145,1780073452000,-500.0,0.00013698,2]
[423386142,1780073452000,-475.54964142,0.00013698,2]
[423386146,1780073452000,-500.0,0.00013698,2]
[423386143,1780073452000,-500.0,0.00013698,2]
[423386147,1780073452000,-500.0,0.00013698,2]
[423386225,1780073453000,-150.0,0.00014334,2]
[423386226,1780073453000,-150.0,0.00014362,2]
[423386227,1780073453000,-166.66,0.00014384,2]
[423386224,1780073453000,-166.66,0.00014247,2]
[423386223,1780073453000,-150.0,0.00014237,2]
[423386215,1780073453000,-166.66,0.0001411,2]
[423386220,1780073453000,-150.0,0.00014237,2]
[423386221,1780073453000,-150.0,0.00014237,2]
[423386216,1780073453000,-150.0,0.00014112,2]
[423386228,1780073453000,-150.0,0.00014387,2]
[423386222,1780073453000,-150.0,0.00014237,2]
[423386229,1780073453000,-150.0,0.00014487,2]
[423386241,1780073453000,-151.0,0.00014495,2]
[423386230,1780073453000,-151.0,0.00014492,2]
[423386231,1780073453000,-151.0,0.00014492,2]
[423386234,1780073453000,-500.0,0.00014495,2]
[423386244,1780073453000,-500.0,0.00014495,2]
[423386243,1780073453000,-263.088574,0.00014495,2]
[423386239,1780073453000,-151.0,0.00014495,2]
[423386240,1780073453000,-151.0,0.00014495,2]
[423386233,1780073453000,-500.0,0.00014495,2]
[423386235,1780073453000,-500.0,0.00014495,2]
[423386237,1780073453000,-151.0,0.00014495,2]
[423386236,1780073453000,-151.0,0.00014495,2]
[423386245,1780073453000,-500.0,0.00014495,2]
[423386213,1780073453000,-190.72078798,0.00014,7]
[423386232,1780073453000,-500.0,0.00014495,2]
[423386218,1780073453000,-1600.0,0.00014207,2]
[423386187,1780073453000,-500.0,0.00013698,2]
[423386219,1780073453000,-9861.5750222,0.00014208,2]
[423386238,1780073453000,-151.0,0.00014495,2]
[423386186,1780073453000,-500.0,0.00013698,2]
[423386189,1780073453000,-288.28618426,0.00013698,2]
[423386188,1780073453000,-500.0,0.00013698,2]
[423386190,1780073453000,-500.0,0.00013698,2]
[423386191,1780073453000,-500.0,0.00013698,2]
[423386194,1780073453000,-166.66,0.00013699,2]
[423386192,1780073453000,-638.37,0.00013698,2]
[423386193,1780073453000,-200.0,0.00013699,2]
[423386195,1780073453000,-2500.0,0.00013699,2]
[423386198,1780073453000,-150.0,0.00013737,2]
[423386197,1780073453000,-291.20753918,0.00013699,2]
[423386196,1780073453000,-1341.39,0.00013699,2]
[423386199,1780073453000,-150.0,0.00013762,2]
[423386201,1780073453000,-640.0,0.00013818,2]
[423386203,1780073453000,-150.0,0.00013862,2]
[423386205,1780073453000,-4609.0,0.0001388,2]
[423386202,1780073453000,-166.66,0.00013836,2]
[423386204,1780073453000,-150.0,0.00013862,2]
[423386209,1780073453000,-166.66,0.00013973,2]
[423386200,1780073453000,-150.0,0.00013787,2]
[423386210,1780073453000,-150.0,0.00013987,2]
[423386206,1780073453000,-1152.0,0.0001388,2]
[423386208,1780073453000,-548.82,0.00013971,2]
[423386212,1780073453000,-250.0,0.00014,2]
[423386211,1780073453000,-11733.69196958,0.0001399,2]
[423386214,1780073453000,-150.0,0.00014087,2]
[423386217,1780073453000,-2000.0,0.00014139,2]
[423386242,1780073453000,-151.0,0.00014495,2]
[423386207,1780073453000,-377.70945128,0.00013971,2]
[423386248,1780073453000,-500.0,0.00014495,2]
[423386282,1780073453000,-150.0,0.00014861,2]
[423386278,1780073453000,-500.0,0.00014658,2]
[423386281,1780073453000,-250.00000021,0.000148,2]
[423386276,1780073453000,-150.0,0.00014612,2]
[423386283,1780073453000,-290.3445,0.000149,2]
[423386285,1780073453000,-1815.45480053,0.000149,2]
[423386295,1780073453000,-500.0,0.00014999,2]
[423386284,1780073453000,-214.55097097,0.000149,2]
[423386287,1780073453000,-1799.0,0.00014959,2]
[423386286,1780073453000,-9861.5750222,0.000149,2]
[423386291,1780073453000,-150.24304197,0.00014986,2]
[423386289,1780073453000,-217.23219505,0.00014986,2]
[423386288,1780073453000,-227.52200583,0.00014986,2]
[423386290,1780073453000,-276.97587339,0.00014986,2]
[423386293,1780073453000,-151.0,0.00014997,2]
[423386294,1780073453000,-500.0,0.00014999,2]
[423386296,1780073453000,-500.0,0.00014999,2]
[423386298,1780073453000,-500.0,0.00014999,2]
[423386300,1780073453000,-500.0,0.00014999,2]
[423386301,1780073453000,-543.54,0.00014999,2]
[423386299,1780073453000,-500.0,0.00014999,2]
[423386297,1780073453000,-500.0,0.00014999,2]
[423386302,1780073453000,-500.0,0.00014999,2]
[423386304,1780073453000,-500.0,0.00014999,2]
[423386305,1780073453000,-500.0,0.00014999,2]
[423386303,1780073453000,-500.0,0.00014999,2]
[423386246,1780073453000,-500.0,0.00014495,2]
[423386279,1780073453000,-150.0,0.00014687,2]
[423386280,1780073453000,-150.0,0.00014737,2]
[423386292,1780073453000,-270.19191715,0.00014986,2]
[423386273,1780073453000,-220.0,0.000145,2]
[423386277,1780073453000,-150.0,0.00014612,2]
[423386249,1780073453000,-500.0,0.00014495,2]
[423386250,1780073453000,-500.0,0.00014495,2]
[423386252,1780073453000,-984.333274,0.00014495,2]
[423386256,1780073453000,-151.0,0.00014495,2]
[423386251,1780073453000,-452.66918433,0.00014495,2]
[423386254,1780073453000,-984.333274,0.00014495,2]
[423386247,1780073453000,-563.90863491,0.00014495,2]
[423386253,1780073453000,-984.333274,0.00014495,2]
[423386258,1780073453000,-151.0,0.00014495,2]
[423386257,1780073453000,-151.0,0.00014495,2]
[423386260,1780073453000,-846174.3836678,0.00014495,2]